bitfinex-derivatives/quotes_SOLF0:USTF0_20260123
["timestamp","ask_amount","ask_price","bid_price","bid_amount"]
[1769178943768,3.4674641,126.36,126.27,0.93373139]
[1769178944962,3.4674641,126.36,126.3,0.05026919]
[1769178946274,110.9218,126.39,126.3,0.05026919]
[1769178946275,3.4674641,126.39,126.3,0.05026919]
[1769178946868,3.4674641,126.39,126.29,12.39267649]
[1769178947073,3.4674641,126.39,126.28,0.93373139]
[1769178947268,3.4674641,126.43,126.33,0.05191493]
[1769178947670,3.4674641,126.43,126.34,0.93373139]
[1769178948273,3.4674641,126.47,126.37,0.05717555]
[1769178948772,3.4674641,126.47,126.36,0.93373139]
[1769178948967,3.4674641,126.46,126.36,0.93373139]
[1769178949168,3.4674641,126.46,126.41,0.05876424]
[1769178949567,3.4674641,126.46,126.33,110.9665]
[1769178949568,3.4674641,126.45,126.32,117.22557212]
[1769178949768,3.4674641,126.44,126.32,6.24917212]
[1769178950168,3.4674641,126.44,126.32,117.22327212]
[1769178950367,3.4674641,126.44,126.32,6.24917212]
[1769178950568,10.5952641,126.44,126.33,7.1335]
[1769178950763,3.4674641,126.43,126.33,7.1335]
[1769178950970,0.05350612,126.39,126.3,110.9942]
[1769178951276,0.05350612,126.39,126.33,7.1335]
[1769178951472,3.4674641,126.41,126.33,7.1335]
[1769178951674,3.4674641,126.41,126.33,110.9703]
[1769178952063,3.4674641,126.41,126.36,0.05180602]
[1769178953175,12.38457649,126.44,126.36,0.05180602]
[1769178953176,10.5958641,126.43,126.36,0.05180602]
[1769178953374,3.4674641,126.4,126.29,111.0041]
[1769178953572,3.52219472,126.4,126.29,111.0041]
[1769178953772,3.52219472,126.4,126.31,7.1346]
[1769178953976,3.4674641,126.4,126.31,7.1346]
[1769178954273,3.4674641,126.4,126.32,110.9754]
[1769178954476,3.4674641,126.43,126.33,110.9688]
[1769178954981,3.4674641,126.43,126.35,7.1323]
[1769178955177,3.4674641,126.43,126.23,9.63693876]
[1769178955178,39.0,126.42,126.23,9.63693876]
[1769178955379,7.1323,126.36,126.26,7.1374]
[1769178955579,116.19937649,126.37,126.23,120.68873876]
[1769178955879,5.25667649,126.37,126.26,7.1375]
[1769178956070,110.9476,126.36,126.23,9.63693876]
[1769178956275,110.9635,126.34,126.23,9.63693876]
[1769178956573,7.1346,126.32,126.23,9.63693876]
[1769178956766,116.22017649,126.34,126.2,120.71933876]
[1769178956767,110.9762,126.33,126.2,120.71933876]
[1769178957279,0.05387095,126.29,126.23,9.63693876]
[1769178957480,110.9452,126.36,126.23,9.63693876]
[1769178957679,7.1329,126.35,126.25,0.05308112]
[1769178958070,7.1329,126.35,126.24,9.63693876]
[1769178958472,110.9576,126.35,126.24,16.77543876]
[1769178958871,110.9576,126.35,126.28,0.05423712]
[1769178959179,7.134,126.33,126.28,0.05423712]
[1769178959879,7.1329,126.35,126.28,0.05423712]
[1769178960271,110.9536,126.35,126.28,0.05423712]
[1769178960467,5.25667649,126.36,126.28,0.05423712]
[1769178960870,5.25667649,126.36,126.26,9.63693876]
[1769178961377,5.25667649,126.36,126.31,0.05901263]
[1769178961771,7.1334,126.34,126.26,9.63693876]
[1769178961966,116.17747649,126.39,126.26,9.63693876]
[1769178962169,7.1334,126.34,126.26,9.63693876]
[1769178962677,110.9553,126.35,126.26,9.63693876]
[1769178962876,110.9299,126.38,126.26,9.63693876]
[1769178963176,110.9559,126.35,126.26,9.63693876]
[1769178963476,0.05901486,126.33,126.26,9.63693876]
[1769178965274,0.05901486,126.33,126.23,9.63693876]
[1769178965676,110.9642,126.34,126.23,9.63693876]
[1769178966073,0.05487224,126.29,126.23,9.63693876]
[1769178966977,111.0173,126.28,126.17,5.26413817]
[1769178967177,111.06287224,126.29,126.14,5.26413817]
[1769178967370,116.28773817,126.27,126.11,5.26413817]
[1769178967574,5.26413817,126.27,126.11,116.42503817]
[1769178967774,5.26413817,126.29,126.16,111.1192]
[1769178967979,110.9767,126.33,126.17,5.26413817]
[1769178967980,116.24613817,126.32,126.17,5.26413817]
[1769178968284,7.1357,126.3,126.18,0.04985761]
[1769178968584,7.1357,126.3,126.17,5.26413817]
[1769178968585,110.9886,126.31,126.17,5.26413817]
[1769178968783,7.1363,126.29,126.16,7.1431]
[1769178969082,111.015,126.28,126.17,4.81848876]
[1769178969380,111.0234,126.27,126.17,4.81848876]
[1769178969783,0.05344102,126.24,126.17,4.81848876]
[1769178971586,5.26413817,126.3,126.17,4.81848876]
[1769178971883,5.26413817,126.3,126.2,4.79176825]
[1769178972068,5.26413817,126.3,126.19,0.05286922]
[1769178972069,111.0157,126.28,126.19,0.05286922]
[1769178972482,5.26413817,126.3,126.17,4.79176825]
[1769178972680,116.26373817,126.3,126.17,4.79176825]
[1769178972880,111.0057,126.29,126.17,4.79176825]
[1769178973083,111.0057,126.29,126.22,0.05470565]
[1769178973277,7.1373,126.27,126.22,0.05470565]
[1769178973479,111.0057,126.29,126.22,0.05470565]
[1769178973480,116.26373817,126.3,126.22,0.05470565]
[1769178973672,111.0065,126.29,126.22,0.05470565]
[1769178973875,7.1372,126.27,126.22,0.05470565]
[1769178974084,5.26413817,126.3,126.18,4.79176825]
[1769178974289,12.39973817,126.3,126.21,11.93206825]
[1769178974583,116.26483817,126.3,126.23,0.05418803]
[1769178974978,7.1373,126.27,126.23,0.05418803]
[1769178975783,111.0276,126.27,126.15,4.81886226]
[1769178975991,111.0457,126.25,126.15,4.81886226]
[1769178976287,116.31393817,126.24,126.15,4.81886226]
[1769178976487,7.1401,126.22,126.15,4.81886226]
[1769178976788,5.26413817,126.24,126.15,4.81886226]
[1769178976988,12.40343817,126.24,126.15,11.96276226]
[1769178977180,0.05712145,126.2,126.15,11.96276226]
[1769178977487,0.05712145,126.2,126.15,4.81886226]
[1769178978082,12.40343817,126.24,126.15,4.81886226]
[1769178978284,111.0276,126.27,126.16,4.84054605]
[1769178978285,7.1385,126.25,126.16,4.84054605]
[1769178978690,116.29173817,126.27,126.16,4.79030154]
[1769178978986,111.0426,126.25,126.16,4.79030154]
[1769178979184,111.0505,126.24,126.16,4.79030154]
[1769178979385,111.0714,126.22,126.13,4.79030154]
[1769178979576,111.0806,126.21,126.13,4.79030154]
[1769178979776,111.0901,126.2,126.13,4.79030154]
[1769178979982,111.0714,126.22,126.13,4.79030154]
[1769178980283,111.0505,126.24,126.13,4.79030154]
[1769178980487,111.0673,126.22,126.13,4.79030154]
[1769178981084,5.26413817,126.25,126.13,4.79030154]
[1769178981283,111.0516,126.24,126.13,4.79030154]
[1769178981487,111.0675,126.22,126.13,4.79030154]
[1769178981690,7.1418,126.19,126.13,4.79030154]
[1769178981885,0.05616902,126.2,126.13,4.79030154]
[1769178982086,5.26413817,126.25,126.16,4.84418199]
[1769178982400,7.1397,126.23,126.16,4.84418199]
[1769178982604,116.28333817,126.28,126.16,4.79030154]
[1769178982895,111.0192,126.28,126.18,4.79030154]
[1769178983095,111.0257,126.27,126.18,4.79030154]
[1769178983388,111.0257,126.27,126.19,0.05629776]
[1769178983998,111.0192,126.28,126.18,4.79030154]
[1769178984301,5.26413817,126.3,126.22,0.05122385]
[1769178984496,7.1396,126.23,126.14,4.81591346]
[1769178984795,111.0348,126.26,126.14,4.81591346]
[1769178985188,116.29353817,126.27,126.16,4.81591346]
[1769178985387,111.0327,126.26,126.16,4.81591346]
[1769178986393,7.1387,126.25,126.17,4.81591346]
[1769178986792,111.0343,126.26,126.17,4.81591346]
[1769178986993,7.1396,126.23,126.17,4.81591346]
[1769178987694,0.05556355,126.21,126.13,4.81591346]
[1769178988199,7.1396,126.23,126.13,4.81591346]
[1769178989099,0.04997319,126.19,126.13,4.81591346]
[1769178989486,7.1401,126.22,126.13,4.81591346]
[1769178989696,7.1401,126.22,126.15,0.05305281]
[1769178990100,12.40343817,126.24,126.15,0.05305281]
[1769178990499,12.40343817,126.24,126.13,4.81591346]
[1769178990805,7.1395,126.23,126.14,4.81591346]
[1769178990996,7.1395,126.23,126.18,0.05770048]
[1769178991889,7.1385,126.25,126.18,0.05770048]
[1769178992116,111.0206,126.28,126.18,0.05770048]
[1769178992117,5.26413817,126.27,126.18,0.05770048]
[1769178992303,5.26413817,126.27,126.18,4.87361394]
[1769178992700,5.26413817,126.3,126.19,4.81591346]
[1769178992897,5.26413817,126.3,126.21,4.87295003]
[1769178993395,5.26413817,126.3,126.21,4.81591346]
[1769178993597,7.135,126.31,126.21,4.81591346]
[1769178993796,5.26413817,126.33,126.24,0.06085458]
[1769178994198,7.1328,126.35,126.25,4.81591346]
[1769178994394,5.26413817,126.33,126.22,4.81591346]
[1769178994597,7.1351,126.31,126.22,4.81591346]
[1769178994898,5.26413817,126.33,126.27,0.05924764]
[1769178995099,7.1345,126.32,126.27,0.05924764]
[1769178996198,5.26413817,126.3,126.21,7.1403]
[1769178996398,5.26413817,126.3,126.19,4.84553728]
[1769178997098,5.26413817,126.32,126.24,4.84553728]
[1769178997293,5.26413817,126.34,126.24,4.84553728]
[1769178997499,116.20573817,126.37,126.24,4.84553728]
[1769178997696,5.26413817,126.37,126.25,4.84553728]
[1769178998301,116.15823817,126.42,126.3,0.05022076]
[1769178998600,110.9109,126.4,126.3,4.86591746]
[1769178998800,110.9003,126.41,126.3,4.8156967]
[1769178999103,116.15903817,126.42,126.3,4.8156967]
[1769178999294,7.1301,126.4,126.3,4.8156967]
[1769178999494,5.26413817,126.42,126.3,4.8156967]
[1769178999703,5.26413817,126.42,126.34,0.05376524]
[1769178999891,123.25913817,126.45,126.34,4.86946194]
[1769179000093,5.26413817,126.45,126.34,4.86946194]
[1769179000296,110.8741,126.44,126.34,4.8156967]
[1769179000508,110.8838,126.43,126.3,4.8156967]
[1769179001007,0.05552851,126.4,126.3,4.8156967]
[1769179001402,7.1291,126.42,126.3,4.8156967]
[1769179001608,7.1296,126.41,126.3,4.8156967]
[1769179001811,5.26413817,126.42,126.3,4.8156967]
[1769179002009,116.13823817,126.44,126.3,4.8156967]
[1769179002402,0.05306969,126.37,126.31,4.84075101]
[1769179004707,0.05306969,126.37,126.28,4.84075101]
[1769179005208,116.20423817,126.37,126.28,4.84075101]
[1769179005507,5.26413817,126.37,126.28,4.84075101]
[1769179005695,116.20273817,126.37,126.28,4.84075101]
[1769179005895,116.20273817,126.37,126.25,4.84075101]
[1769179006098,5.26413817,126.34,126.25,4.84075101]
[1769179006296,5.31763213,126.34,126.25,4.84075101]
[1769179006698,5.26413817,126.34,126.25,4.84075101]
[1769179007705,5.26413817,126.34,126.26,7.1374]
[1769179007911,5.26413817,126.37,126.27,4.84075101]
[1769179008304,5.26413817,126.37,126.27,11.97775101]
[1769179008512,5.26413817,126.37,126.27,4.84075101]
[1769179008813,5.26413817,126.4,126.3,4.84075101]
[1769179009005,7.1291,126.42,126.31,11.97555101]
[1769179009311,7.1291,126.42,126.32,4.84075101]
[1769179009715,5.26413817,126.43,126.32,11.97495101]
[1769179009913,5.26413817,126.43,126.32,4.84075101]
[1769179010409,7.1289,126.42,126.32,11.97485101]
[1769179010806,7.1289,126.42,126.33,7.1336]
[1769179011012,7.128,126.44,126.33,4.84075101]
[1769179011408,5.26413817,126.45,126.36,7.1318]
[1769179012006,5.26413817,126.45,126.35,11.97325101]
[1769179012600,116.13393817,126.45,126.33,7.1333]
[1769179012911,5.26413817,126.42,126.33,4.84075101]
[1769179013212,5.26413817,126.42,126.34,7.1328]
[1769179013410,5.26413817,126.42,126.33,4.84075101]
[1769179013411,0.0514055,126.4,126.33,4.84075101]
[1769179013607,0.0514055,126.4,126.3,115.83015101]
[1769179014010,5.26413817,126.42,126.33,7.1336]
[1769179015023,5.26413817,126.42,126.31,110.9821]
[1769179015024,12.39293817,126.42,126.34,7.1331]
[1769179015314,12.39293817,126.42,126.31,4.84075101]
[1769179015517,5.26413817,126.42,126.32,4.84075101]
[1769179016219,12.39303817,126.42,126.32,4.84075101]
[1769179016517,5.26413817,126.42,126.32,4.84075101]
[1769179016818,7.13,126.4,126.32,4.84075101]
[1769179017510,12.39333817,126.42,126.32,4.84075101]
[1769179019622,116.16183817,126.42,126.32,4.84075101]
[1769179020321,7.1311,126.38,126.32,4.84075101]
[1769179020618,7.1311,126.38,126.28,4.84075101]
[1769179020914,7.1305,126.39,126.29,4.84075101]
[1769179021410,7.1297,126.41,126.29,4.84075101]
[1769179021611,7.1297,126.41,126.3,4.84075101]
[1769179022019,5.26413817,126.45,126.33,4.84075101]
[1769179022213,116.13243817,126.45,126.33,4.84075101]
[1769179022517,5.26413817,126.45,126.33,4.84075101]
[1769179022719,7.1282,126.43,126.34,4.84075101]
[1769179023223,7.1289,126.42,126.34,4.84075101]
[1769179023419,110.8573,126.46,126.34,4.84075101]
[1769179023617,110.8615,126.46,126.34,4.84075101]
[1769179024123,110.8838,126.43,126.31,4.84075101]
[1769179024425,116.16113817,126.42,126.31,4.84075101]
[1769179024812,7.1298,126.41,126.31,4.84075101]
[1769179025319,5.26413817,126.42,126.32,4.84075101]
[1769179026024,110.8531,126.47,126.34,4.84075101]
[1769179026025,5.26413817,126.45,126.34,4.84075101]
[1769179027018,12.39163817,126.45,126.35,4.84075101]
[1769179027223,0.05025174,126.41,126.35,4.84075101]
[1769179027424,5.26413817,126.48,126.35,4.84075101]
[1769179027617,7.1265,126.46,126.39,0.05676188]
[1769179027817,110.8478,126.47,126.39,0.05676188]
[1769179028018,5.26413817,126.45,126.35,4.84075101]
[1769179028722,116.10593817,126.48,126.39,0.06047588]
[1769179028925,7.1272,126.45,126.39,0.06047588]
[1769179029117,7.1272,126.45,126.35,11.97325101]
[1769179029827,7.1272,126.45,126.39,0.05708506]
[1769179030214,5.25168794,126.47,126.39,0.05708506]
[1769179030716,5.25168794,126.47,126.35,4.84075101]
[1769179031125,0.05485581,126.44,126.37,7.1314]
[1769179032128,0.05485581,126.44,126.35,4.84075101]
[1769179032323,0.05485581,126.44,126.32,4.84190698]
[1769179032523,5.30654375,126.44,126.33,4.84190698]
[1769179032724,5.25168794,126.44,126.33,4.84190698]
[1769179032925,5.25168794,126.44,126.36,7.132]
[1769179033125,5.25168794,126.47,126.35,4.84190698]
[1769179033324,116.10338794,126.47,126.35,4.84190698]
[1769179033629,5.25168794,126.44,126.32,4.84190698]
[1769179033834,0.05164107,126.42,126.32,4.84190698]
[1769179034126,7.1294,126.41,126.32,4.84190698]
[1769179034322,116.12868794,126.44,126.32,4.84190698]
[1769179034530,7.1287,126.42,126.34,7.1332]
[1769179034926,7.1287,126.42,126.32,4.84190698]
[1769179035121,5.25168794,126.44,126.34,4.84190698]
[1769179035728,5.25168794,126.44,126.36,7.1321]
[1769179036435,7.1282,126.43,126.36,7.1321]
[1769179037141,5.25168794,126.44,126.36,4.84190698]
[1769179037329,5.25168794,126.47,126.36,4.84190698]
[1769179037732,7.1272,126.45,126.37,7.1315]
[1769179038127,5.25168794,126.47,126.36,4.84190698]
[1769179038321,7.1282,126.43,126.36,4.84190698]
[1769179038836,7.1282,126.43,126.3,4.84190698]
[1769179038837,110.8869,126.43,126.3,4.84190698]
[1769179039229,7.1295,126.41,126.33,7.1337]
[1769179039432,7.1295,126.41,126.32,4.84190698]
[1769179040533,7.1287,126.43,126.34,4.84190698]
[1769179040734,5.25168794,126.44,126.34,4.84190698]
[1769179041328,117.24865671,126.43,126.31,4.84190698]
[1769179041528,5.25168794,126.41,126.31,4.84190698]
[1769179042334,116.15648794,126.41,126.31,4.84190698]
[1769179042837,7.1303,126.4,126.31,4.84190698]
[1769179043038,5.25168794,126.41,126.31,4.84190698]
[1769179043238,12.38128794,126.41,126.31,11.97660698]
[1769179043430,5.25168794,126.41,126.32,4.84190698]
[1769179043831,12.38138794,126.41,126.32,4.84190698]
[1769179044232,5.25168794,126.41,126.32,4.84190698]
[1769179044742,7.1291,126.42,126.33,4.84190698]
[1769179044937,116.12798794,126.44,126.33,4.84190698]
[1769179045142,5.85436929,126.43,126.33,4.84190698]
[1769179045333,12.37978794,126.44,126.34,4.84190698]
[1769179045733,5.25168794,126.44,126.34,4.84190698]
[1769179046129,5.25168794,126.44,126.35,11.97440698]
[1769179046336,5.25168794,126.44,126.33,4.84190698]
[1769179046530,12.21114007,126.43,126.33,4.84190698]
[1769179046839,7.1299,126.4,126.31,4.84190698]
[1769179047340,7.1299,126.4,126.27,111.0199]
[1769179047341,116.15558794,126.41,126.27,4.84190698]
[1769179047544,7.1311,126.38,126.29,4.84190698]
[1769179047748,5.25168794,126.38,126.29,4.84190698]
[1769179047951,7.1316,126.37,126.29,4.84190698]
[1769179048143,116.18178794,126.38,126.26,4.84190698]
[1769179048337,5.25168794,126.32,126.22,4.84190698]
[1769179049346,7.1351,126.31,126.22,4.84190698]
[1769179050153,5.25168794,126.32,126.22,4.84190698]
[1769179051547,7.1353,126.31,126.22,4.84190698]
[1769179052241,5.25168794,126.32,126.22,4.84190698]
[1769179052841,7.1336,126.34,126.23,4.84190698]
[1769179053945,7.1339,126.33,126.23,4.84190698]
[1769179054552,7.1345,126.32,126.23,11.98120698]
[1769179054850,110.9735,126.33,126.23,4.84190698]
[1769179055045,5.25168794,126.32,126.19,4.84190698]
[1769179055246,7.1356,126.3,126.19,4.84190698]
[1769179056239,7.1361,126.29,126.19,11.98350698]
[1769179056448,7.1361,126.29,126.2,4.84190698]
[1769179057654,7.1367,126.28,126.2,4.84190698]
[1769179058559,7.1373,126.27,126.2,4.84190698]
[1769179058948,111.0283,126.27,126.17,4.84190698]
[1769179059345,111.0325,126.26,126.17,4.84190698]
[1769179059545,111.0437,126.25,126.17,4.84190698]
[1769179059850,116.28638794,126.26,126.14,4.84190698]
[1769179060157,111.0613,126.23,126.14,4.84190698]
[1769179060343,111.0613,126.23,126.09,9.3751458]
[1769179060344,111.0765,126.21,126.11,4.84190698]
[1769179061351,111.087,126.2,126.11,4.84190698]
[1769179061758,111.0678,126.22,126.11,4.84190698]
[1769179061958,7.1413,126.2,126.12,4.84190698]
[1769179062351,111.0854,126.2,126.12,4.84190698]
[1769179063258,116.31948794,126.22,126.09,14.21705278]
[1769179063451,116.31948794,126.22,126.1,4.84190698]
[1769179065159,111.085,126.2,126.1,4.84190698]
[1769179065360,116.34788794,126.19,126.09,9.3751458]
[1769179065653,111.085,126.2,126.04,4.84190698]
[1769179065654,116.37528794,126.16,126.04,4.84190698]
[1769179066657,111.2439,126.02,125.89,9.52947988]
[1769179066848,111.2097,126.06,125.86,111.3787]
[1769179066849,111.2792,125.98,125.86,9.52947988]
[1769179067051,5.25168794,125.96,125.84,7.1611]
[1769179067255,5.25168794,125.96,125.83,9.52947988]
[1769179067256,116.55248794,125.96,125.83,9.52947988]
[1769179067556,5.25168794,125.93,125.83,9.52947988]
[1769179067764,118.4557,125.96,125.83,9.52947988]
[1769179067765,5.25168794,125.96,125.83,9.52947988]
[1769179067963,111.2466,126.02,125.89,9.52947988]
[1769179068161,23.75,126.18,125.92,9.52947988]
[1769179068354,5.25168794,126.01,125.92,9.52947988]
[1769179068549,111.2724,125.99,125.89,9.52947988]
[1769179068952,111.2643,126.0,125.89,9.52947988]
[1769179068953,118.4168,126.0,125.89,9.52947988]
[1769179069460,116.50888794,126.01,125.89,9.52947988]
[1769179069758,116.48328794,126.04,125.9,9.52947988]
[1769179070160,111.2498,126.02,125.9,9.52947988]
[1769179070764,111.2642,126.0,125.9,9.52947988]
[1769179070966,111.2549,126.01,125.9,9.52947988]
[1769179071259,111.2498,126.02,125.9,9.52947988]
[1769179071446,111.2552,126.01,125.9,9.52947988]
[1769179071645,111.2813,125.98,125.84,9.52947988]
[1769179071849,111.2903,125.97,125.84,9.52947988]
[1769179072255,111.3101,125.95,125.84,9.52947988]
[1769179072460,111.3342,125.92,125.79,9.52947988]
[1769179072658,5.25168794,125.92,125.79,9.52947988]
[1769179072848,111.3623,125.89,125.79,9.52947988]
[1769179073055,111.3618,125.89,125.76,9.52947988]
[1769179073255,111.3828,125.87,125.76,9.52947988]
[1769179073568,5.25168794,125.87,125.76,9.52947988]
[1769179073754,111.3618,125.89,125.76,9.52947988]
[1769179074062,5.25168794,125.9,125.77,9.52947988]
[1769179074253,111.3797,125.87,125.77,9.52947988]
[1769179074458,116.63138794,125.87,125.77,9.52947988]
[1769179074661,116.63348794,125.87,125.77,9.52947988]
[1769179074858,5.25168794,125.87,125.77,9.52947988]
[1769179075156,5.25168794,125.9,125.77,9.52947988]
[1769179075360,111.3434,125.91,125.78,9.52947988]
[1769179075553,116.60458794,125.9,125.78,9.52947988]
[1769179075754,111.3628,125.89,125.78,9.52947988]
[1769179075955,111.3696,125.88,125.78,9.52947988]
[1769179076153,118.5216,125.89,125.74,9.52947988]
[1769179076356,116.63058794,125.87,125.74,9.52947988]
[1769179076658,5.25168794,125.87,125.74,9.52947988]
[1769179076859,222.6629,125.93,125.74,9.52947988]
[1769179076860,227.91458794,125.93,125.78,9.52947988]
[1769179077361,5.25168794,125.9,125.78,9.52947988]
[1769179077754,116.58288794,125.93,125.78,9.52947988]
[1769179077954,5.25168794,125.93,125.8,9.52947988]
[1769179078155,111.3179,125.94,125.81,9.52947988]
[1769179078356,116.57818794,125.93,125.81,9.52947988]
[1769179078560,118.4669,125.95,125.81,9.52947988]
[1769179078757,118.464,125.95,125.81,9.52947988]
[1769179078961,116.57738794,125.93,125.81,9.52947988]
[1769179079262,111.3351,125.92,125.81,9.52947988]
[1769179079662,5.25168794,125.93,125.81,9.52947988]
[1769179080165,116.57728794,125.93,125.81,9.52947988]
[1769179080461,0.05370957,125.88,125.78,16.69387988]
[1769179080653,7.21330957,125.88,125.75,9.52947988]
[1769179080857,0.05370957,125.88,125.76,120.99837988]
[1769179081055,111.4029,125.84,125.72,9.52947988]
[1769179081254,111.4029,125.84,125.65,469.63404438]
[1769179081255,111.4418,125.8,125.64,102.04422012]
[1769179081466,111.4418,125.8,125.66,19.05895976]
[1769179081767,5.25168794,125.76,125.66,19.05895976]
[1769179082063,5.25168794,125.76,125.63,28.75106606]
[1769179082265,5.25168794,125.76,125.64,19.05895976]
[1769179082462,111.4612,125.78,125.64,19.05895976]
[1769179082967,111.4257,125.82,125.7,19.05895976]
[1769179083160,111.4199,125.83,125.7,19.05895976]
[1769179083361,111.4349,125.81,125.7,19.05895976]
[1769179083668,111.4338,125.81,125.7,19.05895976]
[1769179083867,118.6173,125.79,125.7,19.05895976]
[1769179084065,111.4588,125.78,125.66,19.05895976]
[1769179084269,111.4935,125.74,125.63,9.6921063]
[1769179084462,118.6608,125.74,125.63,9.6921063]
[1769179084663,111.4935,125.74,125.63,9.6921063]
[1769179084865,5.25168794,125.75,125.63,28.75106606]
[1769179085070,111.4706,125.77,125.65,19.05895976]
[1769179085264,5.25168794,125.78,125.65,19.05895976]
[1769179085467,116.68538794,125.81,125.65,19.05895976]
[1769179085667,111.4144,125.83,125.71,19.05895976]
[1769179085967,111.3843,125.87,125.71,19.05895976]
[1769179085968,111.3881,125.86,125.71,19.05895976]
[1769179086168,111.3967,125.85,125.74,19.05895976]
[1769179086364,116.66188794,125.84,125.71,19.05895976]
[1769179086570,111.4152,125.83,125.71,19.05895976]
[1769179086771,111.3967,125.85,125.71,19.05895976]
[1769179087164,5.25168794,125.86,125.71,19.05895976]
[1769179087366,111.3609,125.89,125.78,19.05895976]
[1769179087569,111.3561,125.9,125.78,19.05895976]
[1769179087867,111.3609,125.89,125.78,19.05895976]
[1769179088068,111.3609,125.89,125.75,19.05895976]
[1769179088069,111.3784,125.87,125.75,19.05895976]
[1769179088257,7.16,125.87,125.75,19.05895976]
[1769179088867,118.5221,125.89,125.77,19.05895976]
[1769179089265,111.3149,125.94,125.8,19.05895976]
[1769179089574,118.4916,125.92,125.8,19.05895976]
[1769179089773,111.3149,125.94,125.83,19.05895976]
[1769179090064,111.3446,125.91,125.83,19.05895976]
[1769179090266,111.3352,125.92,125.83,19.05895976]
[1769179090465,118.5021,125.91,125.83,19.05895976]
[1769179090659,111.361,125.89,125.79,19.05895976]
[1769179090871,0.05668022,125.88,125.79,19.05895976]
[1769179091263,7.1589,125.89,125.79,19.05895976]
[1769179091467,111.3522,125.9,125.79,19.05895976]
[1769179091468,111.353,125.9,125.79,19.05895976]
[1769179091666,118.5192,125.89,125.79,19.05895976]
[1769179092069,0.05410762,125.86,125.79,19.05895976]
[1769179092569,111.44200762,125.86,125.76,19.05895976]
[1769179092769,0.05410762,125.86,125.78,19.05895976]
[1769179093164,111.3723,125.88,125.78,19.05895976]
[1769179093366,116.6753919,125.87,125.74,19.05895976]
[1769179093673,111.3957,125.85,125.74,19.05895976]
[1769179093875,116.7033919,125.84,125.74,19.05895976]
[1769179094174,116.6926919,125.85,125.74,19.05895976]
[1769179094473,5.2984919,125.88,125.74,19.05895976]
[1769179094673,116.6683919,125.88,125.74,19.05895976]
[1769179094868,7.16,125.87,125.75,19.05895976]
[1769179095072,111.3856,125.86,125.75,19.05895976]
[1769179095674,7.1608,125.86,125.75,19.05895976]
[1769179096274,0.05683271,125.82,125.76,19.05895976]
[1769179097064,0.05683271,125.82,125.78,0.05601855]
[1769179097273,0.05683271,125.82,125.73,19.05895976]
[1769179097865,111.3948,125.85,125.73,19.05895976]
[1769179098070,111.412,125.83,125.73,19.05895976]
[1769179098266,5.2984919,125.86,125.74,19.05895976]
[1769179098468,5.2984919,125.86,125.75,19.05895976]
[1769179098680,5.2984919,125.86,125.76,19.03324535]
[1769179098879,111.4045,125.84,125.76,19.03324535]
[1769179099282,7.1624,125.83,125.76,19.03324535]
[1769179099680,116.6848919,125.86,125.76,19.03324535]
[1769179099880,5.2984919,125.86,125.76,19.03324535]
[1769179100076,111.3734,125.88,125.76,19.03324535]
[1769179100277,5.2984919,125.86,125.76,19.03324535]
[1769179100477,7.1612,125.85,125.76,19.03324535]
[1769179101075,5.2984919,125.89,125.77,19.03324535]
[1769179101269,111.3675,125.88,125.78,19.03324535]
[1769179101477,111.3762,125.87,125.78,19.03324535]
[1769179101674,5.2984919,125.9,125.78,19.03324535]
[1769179101982,116.6508919,125.9,125.78,19.03324535]
[1769179102177,111.3692,125.88,125.79,19.03324535]
[1769179102383,111.364,125.89,125.79,19.03324535]
[1769179102678,7.1596,125.88,125.79,19.03324535]
[1769179103280,0.05253691,125.85,125.79,19.03324535]
[1769179103475,116.6460919,125.91,125.81,19.03324535]
[1769179103683,111.3263,125.93,125.83,19.03324535]
[1769179103879,116.6201919,125.94,125.83,19.03324535]
[1769179104286,7.1568,125.93,125.84,19.03324535]
[1769179104585,7.1568,125.93,125.85,26.12171253]
[1769179104780,111.3131,125.95,125.87,0.05643538]
[1769179105083,111.2999,125.96,125.88,7.08962487]
[1769179105280,111.2999,125.96,125.87,19.03324535]
[1769179105588,111.2999,125.96,125.84,19.03324535]
[1769179105589,7.1573,125.92,125.84,19.03324535]
[1769179106084,116.6150919,125.94,125.84,19.03324535]
[1769179106486,5.2984919,125.94,125.84,19.03324535]
[1769179107084,111.3269,125.93,125.84,19.03324535]
[1769179107281,111.3218,125.94,125.84,19.03324535]
[1769179107484,111.3409,125.91,125.81,19.03324535]
[1769179107882,111.36,125.89,125.81,19.03324535]
[1769179108286,7.1589,125.89,125.81,19.03324535]
[1769179108479,111.3618,125.89,125.81,19.03324535]
[1769179108683,111.3618,125.89,125.84,0.05817315]
[1769179109082,111.3618,125.89,125.76,111.4691]